fUSD/lending_fUSD_20240907
["ID","MTS","AMOUNT","RATE_DAILY","PERIOD"]
[337473021,1725678679087,-500.0,0.00014998,2]
[337473022,1725678679096,-273.81257795,0.00014998,2]
[337473023,1725678679106,-804.62,0.00014998,2]
[337473024,1725678679115,-500.0,0.00014998,2]
[337473025,1725678679125,-500.0,0.00014998,2]
[337473026,1725678679134,-500.0,0.00014998,2]
[337473027,1725678679143,-500.0,0.00014998,2]
[337473028,1725678679153,-1756.53,0.00014998,2]
[337473029,1725678679163,-1756.53,0.00014998,2]
[337473030,1725678679173,-500.0,0.00014998,2]
[337473031,1725678679182,-500.0,0.00014998,2]
[337473032,1725678679192,-505.23245844,0.00014998,2]
[337473033,1725678679203,-500.0,0.00014998,2]
[337473034,1725678679213,-707.68,0.00014998,2]
[337473035,1725678679222,-707.68,0.00014998,2]
[337473036,1725678679232,-500.0,0.00014998,2]
[337473037,1725678679242,-581.38600048,0.00014998,2]
[337473038,1725678679251,-291.75084074,0.00014998,2]
[337473039,1725678679261,-650.71,0.00014998,2]
[337473040,1725678679271,-650.71,0.00014998,2]
[337473041,1725678679280,-650.71,0.00014998,2]
[337473042,1725678679290,-650.71,0.00014998,2]
[337473043,1725678679300,-650.71,0.00014998,2]
[337473044,1725678679310,-650.71,0.00014998,2]
[337473045,1725678679319,-650.83800369,0.00014998,2]
[337473046,1725678679329,-170.497913,0.00014998,2]
[337473047,1725678679339,-500.0,0.00014998,2]
[337473048,1725678679349,-500.0,0.00014998,2]
[337473049,1725678679358,-170.497913,0.00014998,2]
[337473050,1725678679368,-500.0,0.00014998,2]
[337473051,1725678679378,-500.0,0.00014998,2]
[337473052,1725678679388,-500.0,0.00014998,2]
[337473053,1725678679398,-500.0,0.00014998,2]
[337473054,1725678679408,-500.0,0.00014998,2]
[337473055,1725678679418,-500.0,0.00014998,2]
[337473056,1725678679427,-1126.57,0.00014998,2]
[337473057,1725678679438,-500.0,0.00014998,2]
[337473058,1725678679447,-1126.57,0.00014998,2]
[337473059,1725678679457,-1126.57,0.00014998,2]
[337473060,1725678679467,-1126.57,0.00014998,2]
[337473061,1725678679476,-1126.57,0.00014998,2]
[337473062,1725678679485,-1126.57,0.00014998,2]
[337473063,1725678679495,-1126.62345304,0.00014998,2]
[337473064,1725678679504,-500.0,0.00014998,2]
[337473065,1725678679514,-1462.98,0.00014998,2]
[337473066,1725678679524,-500.0,0.00014998,2]
[337473067,1725678679533,-1462.98,0.00014998,2]
[337473068,1725678679544,-500.0,0.00014998,2]
[337473069,1725678679553,-500.0,0.00014998,2]
[337473070,1725678679564,-1092.72897762,0.00014998,2]
[337473071,1725678679580,-370.25102238,0.00014998,2]
[337473072,1725678679590,-500.0,0.00014998,2]
[337473073,1725678679599,-1462.98,0.00014998,2]
[337473074,1725678679610,-1462.98,0.00014998,2]
[337473075,1725678679619,-1462.98,0.00014998,2]
[337473076,1725678679629,-1463.10752456,0.00014998,2]
[337473077,1725678679639,-500.0,0.00014998,2]
[337473078,1725678679648,-500.0,0.00014998,2]
[337473079,1725678679658,-151.0,0.00014998,2]
[337473080,1725678679668,-628.1,0.00014998,2]
[337473081,1725678679678,-628.1,0.00014998,2]
[337473082,1725678679689,-628.1,0.00014998,2]
[337473083,1725678679699,-474.23103688,0.00014998,2]
[337473084,1725678679711,-153.86896312,0.00014998,2]
[337473085,1725678679720,-534.40672555,0.00014998,2]
[337473086,1725678679732,-93.69327445,0.00014998,2]
[337473087,1725678679742,-203.22998444,0.00014998,2]
[337473088,1725678679771,-500.0,0.00014794,2]
[337473089,1725678679780,-500.0,0.00014794,2]
[337473090,1725678679792,-106.44534,0.00014998,2]
[337473091,1725678679803,-318.42467556,0.00014998,2]
[337473092,1725678679813,-628.23,0.00014998,2]
[337473093,1725678679823,-500.0,0.00014998,2]
[337473094,1725678679832,-252.68512781,0.00014998,2]
[337473095,1725678679971,-520.81,0.00014794,2]
[337473096,1725678679980,-307.94769103,0.00014794,2]
[337473097,1725678679992,-192.05230897,0.00014794,2]
[337473098,1725678680002,-464.08769103,0.00014794,2]
[337473099,1725678680014,-35.91230897,0.00014794,2]
[337473100,1725678680024,-500.0,0.00014794,2]
[337473101,1725678680034,-500.0,0.00014794,2]
[337473102,1725678680045,-638.45198927,0.00014794,2]
[337473103,1725678680055,-500.0,0.00014795,2]
[337473104,1725678680064,-520.81,0.00014994,2]
[337473105,1725678680074,-500.0,0.00014994,2]
[337473106,1725678680083,-500.0,0.00014996,2]
[337473107,1725678680093,-500.0,0.00014997,2]
[337473108,1725678680103,-520.81,0.00014997,2]
[337473109,1725678680112,-520.81,0.00014997,2]
[337473110,1725678680121,-247.31487219,0.00014998,2]
[337473111,1725678680141,-245.661976,0.00014998,2]
[337473112,1725678680158,-500.0,0.00014998,2]
[337473113,1725678680173,-500.0,0.00014998,2]
[337473114,1725678680189,-245.661976,0.00014998,2]
[337473115,1725678680205,-500.0,0.00014998,2]
[337473116,1725678680221,-500.0,0.00014998,2]
[337473117,1725678680237,-594.35,0.00014998,2]
[337473118,1725678680252,-594.35,0.00014998,2]
[337473119,1725678680268,-594.35,0.00014998,2]
[337473120,1725678680283,-594.35,0.00014998,2]
[337473121,1725678680296,-594.35,0.00014998,2]
[337473122,1725678680311,-594.35,0.00014998,2]
[337473123,1725678680326,-594.42892134,0.00014998,2]
[337473124,1725678680342,-700.8,0.00014998,2]
[337473125,1725678680359,-700.8,0.00014998,2]
[337473126,1725678680371,-500.0,0.00014998,2]
[337473127,1725678680382,-500.0,0.00014998,2]
[337473128,1725678680398,-500.0,0.00014998,2]
[337473129,1725678680411,-500.0,0.00014998,2]
[337473130,1725678680425,-1027.64,0.00014998,2]
[337473131,1725678680441,-1027.64,0.00014998,2]
[337473132,1725678680452,-1027.64,0.00014998,2]
[337473133,1725678680463,-1027.64,0.00014998,2]
[337473134,1725678680478,-1027.64,0.00014998,2]
[337473135,1725678680492,-1027.64,0.00014998,2]
[337473136,1725678680505,-1027.7628465,0.00014998,2]
[337473137,1725678680518,-500.0,0.00014998,2]
[337473138,1725678680531,-500.0,0.00014998,2]
[337473139,1725678680545,-546.27,0.00014998,2]
[337473140,1725678680558,-546.27,0.00014998,2]
[337473141,1725678680571,-500.0,0.00014998,2]
[337473142,1725678680584,-500.0,0.00014998,2]
[337473143,1725678680597,-500.0,0.00014998,2]
[337473144,1725678680610,-500.0,0.00014998,2]
[337473145,1725678680623,-500.0,0.00014998,2]
[337473146,1725678680636,-500.0,0.00014998,2]
[337473147,1725678680649,-547.23,0.00014998,2]
[337473148,1725678680662,-750.52,0.00014998,2]
[337473149,1725678680675,-750.52,0.00014998,2]
[337473150,1725678680687,-719.34,0.00014998,2]
[337473151,1725678680701,-719.34,0.00014998,2]
[337473152,1725678680715,-500.0,0.00014998,2]
[337473153,1725678680728,-160.91268748,0.00014998,2]
[337473154,1725678680745,-339.08731252,0.00014998,2]
[337473155,1725678680758,-664.3,0.00014998,2]
[337473156,1725678680770,-592.03001496,0.00014998,2]
[337473157,1725678680786,-72.26998504,0.00014998,2]
[337473158,1725678680800,-664.3,0.00014998,2]
[337473159,1725678680812,-664.3,0.00014998,2]
[337473160,1725678680826,-664.3,0.00014998,2]
[337473161,1725678680840,-664.3,0.00014998,2]
[337473162,1725678680853,-664.40104179,0.00014998,2]
[337473163,1725678680867,-151.0,0.00014998,2]
[337473164,1725678680884,-241.835363,0.00014998,2]
[337473165,1725678680894,-500.0,0.00014998,2]
[337473166,1725678680903,-500.0,0.00014998,2]
[337473167,1725678680912,-151.0,0.00014998,2]
[337473168,1725678680922,-151.0,0.00014998,2]
[337473169,1725678680931,-500.0,0.00014998,2]
[337473170,1725678680941,-466.57256864,0.00014998,2]
[337473171,1725678680950,-500.0,0.00014998,2]
[337473172,1725678680960,-500.0,0.00014998,2]
[337473173,1725678680970,-500.0,0.00014998,2]
[337473174,1725678680979,-500.0,0.00014998,2]
[337473175,1725678680989,-500.0,0.00014998,2]
[337473176,1725678680999,-564.23982804,0.00014998,2]
[337473177,1725678681009,-906.92,0.00014998,2]
[337473178,1725678681018,-906.92,0.00014998,2]
[337473179,1725678681027,-3278.12,0.00014998,2]
[337473180,1725678681037,-3278.12,0.00014998,2]
[337473181,1725678681047,-949.38,0.00014998,2]
[337473182,1725678681058,-949.38,0.00014998,2]
[337473183,1725678681068,-1052.36,0.00014998,2]
[337473184,1725678681080,-1052.36,0.00014998,2]
[337473185,1725678681092,-500.0,0.00014998,2]
[337473186,1725678681101,-500.0,0.00014998,2]
[337473187,1725678681110,-500.0,0.00014998,2]
[337473188,1725678681120,-500.0,0.00014998,2]
[337473189,1725678681130,-175.48560768,0.00014998,2]
[337473190,1725678681140,-726.71,0.00014998,2]
[337473191,1725678681149,-720.52,0.00014998,2]
[337473192,1725678681159,-726.71,0.00014998,2]
[337473193,1725678681169,-720.52,0.00014998,2]
[337473194,1725678681178,-726.71,0.00014998,2]
[337473195,1725678681187,-500.0,0.00014998,2]
[337473196,1725678681197,-726.71,0.00014998,2]
[337473197,1725678681206,-455.06065377,0.00014998,2]
[337473198,1725678681216,-726.71,0.00014998,2]
[337473199,1725678681226,-726.71,0.00014998,2]
[337473200,1725678681235,-726.78618917,0.00014998,2]
[337473201,1725678681244,-1493.88,0.00014998,2]
[337473202,1725678681253,-1493.88,0.00014998,2]
[337473203,1725678681263,-481.43982603,0.00014998,2]
[337473204,1725678681272,-2642.43,0.00014998,2]
[337473205,1725678681281,-2642.43,0.00014998,2]
[337473206,1725678681292,-505.62,0.00014998,2]
[337473207,1725678681301,-505.62,0.00014998,2]
[337473208,1725678681311,-1376.42707163,0.00014998,2]
[337473209,1725678681324,-940.89530094,0.00014998,2]
[337473210,1725678681335,-180.61762743,0.00014998,2]
[337473211,1725678681345,-324.64481177,0.00014998,2]
[337473212,1725678681357,-752.06647049,0.00014998,2]
[337473213,1725678681369,-1421.22871774,0.00014998,2]
[337473214,1725678681378,-179.42128226,0.00014998,2]
[337473215,1725678681390,-742.38871774,0.00014998,2]
[337473216,1725678681399,-921.81,0.00014998,2]
[337473217,1725678681409,-921.81,0.00014998,2]
[337473218,1725678681418,-921.81,0.00014998,2]
[337473219,1725678681428,-921.81,0.00014998,2]
[337473220,1725678681438,-921.81,0.00014998,2]
[337473221,1725678681447,-921.94113503,0.00014998,2]
[337473222,1725678681457,-2113.53,0.00014998,2]
[337473223,1725678681466,-2113.53,0.00014998,2]
[337473224,1725678681475,-883.86,0.00014998,2]
[337473225,1725678681485,-883.86,0.00014998,2]
[337473226,1725678681495,-883.86,0.00014998,2]
[337473227,1725678681504,-883.86,0.00014998,2]
[337473228,1725678681514,-883.86,0.00014998,2]
[337473229,1725678681524,-704.11,0.00014998,2]
[337473230,1725678681533,-704.11,0.00014998,2]
[337473231,1725678681548,-504.95,0.00014998,2]
[337473232,1725678681561,-504.95,0.00014998,2]
[337473233,1725678681571,-500.0,0.00014998,2]
[337473234,1725678681580,-500.0,0.00014998,2]
[337473235,1725678681590,-500.0,0.00014998,2]
[337473236,1725678681599,-500.0,0.00014998,2]
[337473237,1725678681609,-500.0,0.00014998,2]
[337473238,1725678681618,-500.0,0.00014998,2]
[337473239,1725678682078,-518.55,0.00014998,2]
[337473240,1725678682093,-518.55,0.00014998,2]
[337473241,1725678682109,-518.55,0.00014998,2]
[337473242,1725678682123,-518.55,0.00014998,2]
[337473243,1725678682132,-518.55,0.00014998,2]
[337473244,1725678682142,-500.0,0.00014998,2]
[337473245,1725678682152,-500.0,0.00014998,2]
[337473246,1725678682163,-1362.91,0.00014998,2]
[337473247,1725678682173,-908.15,0.00014998,2]
[337473248,1725678682183,-1362.91,0.00014998,2]
[337473249,1725678682193,-908.15,0.00014998,2]
[337473250,1725678682203,-500.0,0.00014998,2]
[337473251,1725678682212,-500.0,0.00014998,2]
[337473252,1725678682224,-500.0,0.00014998,2]
[337473253,1725678682234,-500.0,0.00014998,2]
[337473254,1725678682245,-500.0,0.00014998,2]
[337473255,1725678682255,-500.0,0.00014998,2]
[337473256,1725678682264,-500.0,0.00014998,2]
[337473257,1725678682273,-500.0,0.00014998,2]
[337473258,1725678682282,-500.0,0.00014998,2]
[337473259,1725678682289,-1424.33,0.00014998,2]
[337473260,1725678682298,-1424.33,0.00014998,2]
[337473261,1725678682307,-151.0,0.00014998,2]
[337473262,1725678682317,-155.807002,0.00014998,2]
[337473263,1725678682327,-500.0,0.00014998,2]
[337473264,1725678682337,-500.0,0.00014998,2]
[337473265,1725678682346,-500.0,0.00014998,2]
[337473266,1725678682356,-500.0,0.00014998,2]
[337473267,1725678682367,-500.0,0.00014998,2]
[337473268,1725678682376,-500.0,0.00014998,2]
[337473269,1725678682385,-84.65538257,0.00014998,2]
[337473270,1725678682399,-415.34461743,0.00014998,2]
[337473271,1725678682410,-500.0,0.00014998,2]
[337473272,1725678682421,-500.0,0.00014998,2]
[337473273,1725678682431,-500.0,0.00014998,2]
[337473274,1725678682441,-500.0,0.00014998,2]
[337473275,1725678682450,-500.0,0.00014998,2]
[337473276,1725678682460,-332.28,0.00014998,2]
[337473277,1725678682470,-649.33,0.00014998,2]
[337473278,1725678682480,-649.33,0.00014998,2]
[337473279,1725678682489,-500.0,0.00014998,2]
[337473280,1725678682498,-500.0,0.00014998,2]
[337473281,1725678682507,-1035.58,0.00014998,2]
[337473282,1725678682518,-1035.58,0.00014998,2]
[337473283,1725678682531,-500.0,0.00014998,2]
[337473284,1725678682540,-831.9,0.00014998,2]
[337473285,1725678682549,-831.9,0.00014998,2]
[337473286,1725678682560,-500.0,0.00014998,2]
[337473287,1725678682571,-500.0,0.00014998,2]
[337473288,1725678682580,-540.67256,0.00014998,2]
[337473289,1725678682591,-595.79,0.00014998,2]
[337473290,1725678682602,-595.79,0.00014998,2]
[337473291,1725678682612,-500.0,0.00014998,2]
[337473292,1725678682622,-500.0,0.00014998,2]
[337473293,1725678682632,-500.0,0.00014998,2]
[337473294,1725678682642,-500.0,0.00014998,2]
[337473295,1725678682652,-500.0,0.00014998,2]
[337473296,1725678682662,-500.0,0.00014998,2]
[337473297,1725678682672,-500.0,0.00014998,2]
[337473298,1725678682683,-500.0,0.00014998,2]
[337473299,1725678682692,-500.0,0.00014998,2]
[337473300,1725678682703,-500.0,0.00014998,2]
[337473301,1725678682713,-500.0,0.00014998,2]
[337473302,1725678682723,-500.0,0.00014998,2]
[337473303,1725678682734,-151.0,0.00014998,2]
[337473304,1725678682743,-576.9,0.00014998,2]
[337473305,1725678682752,-576.9,0.00014998,2]
[337473306,1725678682761,-576.9,0.00014998,2]
[337473307,1725678682770,-576.9,0.00014998,2]
[337473308,1725678682779,-524.3,0.00014998,2]
[337473309,1725678682789,-576.9,0.00014998,2]
[337473310,1725678682798,-524.3,0.00014998,2]
[337473311,1725678682807,-576.9,0.00014998,2]
[337473312,1725678682816,-664.2,0.00014998,2]
[337473313,1725678682825,-500.0,0.00014998,2]
[337473314,1725678682834,-576.96,0.00014998,2]
[337473315,1725678682843,-13.45913361,0.00014998,2]
[337473316,1725678682856,-650.74086639,0.00014998,2]
[337473317,1725678682866,-539.71,0.00014998,2]
[337473318,1725678682877,-539.71,0.00014998,2]
[337473319,1725678682886,-1221.82,0.00014998,2]
[337473320,1725678682895,-892.81507857,0.00014998,2]
[337473321,1725678682907,-329.00492143,0.00014998,2]
[337473322,1725678682916,-539.71,0.00014998,2]
[337473323,1725678682926,-15.45152521,0.00014998,2]
[337473324,1725678682937,-524.25847479,0.00014998,2]
[337473325,1725678682946,-539.71,0.00014998,2]
[337473326,1725678682955,-28.3101533,0.00014998,2]
[337473327,1725678682966,-471.6898467,0.00014998,2]
[337473328,1725678682975,-500.0,0.00014998,2]
[337473329,1725678682984,-526.87,0.00014998,2]
[337473330,1725678682994,-490.61302304,0.00014998,2]
[337473331,1725678683005,-36.25697696,0.00014998,2]
[337473332,1725678683014,-526.87,0.00014998,2]
[337473333,1725678683024,-526.87,0.00014998,2]
[337473334,1725678683033,-526.87,0.00014998,2]
[337473335,1725678683043,-526.87,0.00014998,2]
[337473336,1725678683053,-526.87,0.00014998,2]
[337473337,1725678683063,-151.0,0.00014998,2]
[337473338,1725678683073,-500.0,0.00014998,2]
[337473339,1725678683082,-500.0,0.00014998,2]
[337473340,1725678683092,-500.0,0.00014998,2]
[337473341,1725678683101,-358.460702,0.00014998,2]
[337473342,1725678683111,-500.0,0.00014998,2]
[337473343,1725678683120,-500.0,0.00014998,2]
[337473344,1725678683129,-500.0,0.00014998,2]
[337473345,1725678683138,-500.0,0.00014998,2]
[337473346,1725678683147,-500.0,0.00014998,2]
[337473347,1725678683157,-358.460702,0.00014998,2]
[337473348,1725678683166,-342.74299385,0.00014998,2]
[337473349,1725678683175,-263.15177293,0.00014998,2]
[337473350,1725678683187,-236.84822707,0.00014998,2]
[337473351,1725678683195,-44.33851493,0.00014998,2]
[337473352,1725678683207,-326.00056772,0.00014998,2]
[337473353,1725678683215,-500.0,0.00014998,2]
[337473354,1725678683225,-500.0,0.00014998,2]
[337473355,1725678683234,-500.0,0.00014998,2]
[337473356,1725678683244,-500.0,0.00014998,2]
[337473357,1725678683253,-5508.41,0.00014998,2]
[337473358,1725678683262,-1262.23316342,0.00014998,2]
[337473359,1725678683273,-4246.17683658,0.00014998,2]
[337473360,1725678683283,-151.0,0.00014998,2]
[337473361,1725678683293,-151.0,0.00014998,2]
[337473362,1725678683302,-500.0,0.00014998,2]
[337473363,1725678683311,-500.0,0.00014998,2]
[337473364,1725678683320,-151.0,0.00014998,2]
[337473365,1725678683329,-151.0,0.00014998,2]
[337473366,1725678683339,-500.0,0.00014998,2]
[337473367,1725678683348,-500.0,0.00014998,2]
[337473368,1725678683357,-605.96615242,0.00014998,2]
[337473369,1725678683367,-906.78,0.00014998,2]
[337473370,1725678683376,-584.29580573,0.00014998,2]
[337473371,1725678683387,-322.48419427,0.00014998,2]
[337473372,1725678683397,-500.0,0.00014998,2]
[337473373,1725678683406,-500.0,0.00014998,2]
[337473374,1725678683416,-500.0,0.00014998,2]
[337473375,1725678683425,-500.0,0.00014998,2]
[337473376,1725678683434,-500.0,0.00014998,2]
[337473377,1725678683444,-500.0,0.00014998,2]
[337473378,1725678683453,-500.0,0.00014998,2]
[337473379,1725678683462,-500.0,0.00014998,2]
[337473380,1725678683472,-500.0,0.00014998,2]
[337473381,1725678683481,-500.0,0.00014998,2]
[337473382,1725678683490,-526.31,0.00014998,2]
[337473383,1725678683499,-526.31,0.00014998,2]
[337473384,1725678683509,-500.0,0.00014998,2]
[337473385,1725678683518,-500.0,0.00014998,2]
[337473386,1725678683527,-481.54797464,0.00014998,2]
[337473387,1725678683536,-151.0,0.00014998,2]
[337473388,1725678683546,-151.0,0.00014998,2]
[337473389,1725678683555,-785.13169571,0.00014998,2]
[337473390,1725678683567,-5012.41830429,0.00014998,2]
[337473391,1725678683576,-3764.13035723,0.00014998,2]
[337473392,1725678683587,-2033.41964277,0.00014998,2]
[337473393,1725678683596,-166.919425,0.00014998,2]
[337473394,1725678683605,-166.919425,0.00014998,2]
[337473395,1725678683614,-166.919425,0.00014998,2]
[337473396,1725678683623,-166.919425,0.00014998,2]
[337473397,1725678683633,-728.98,0.00014998,2]
[337473398,1725678683642,-728.98,0.00014998,2]
[337473399,1725678683651,-728.98,0.00014998,2]
[337473400,1725678683661,-521.21,0.00014998,2]
[337473401,1725678683670,-728.98,0.00014998,2]
[337473402,1725678683679,-728.98,0.00014998,2]
[337473403,1725678683688,-521.21,0.00014998,2]
[337473404,1725678683699,-670.51,0.00014998,2]
[337473405,1725678683708,-670.51,0.00014998,2]
[337473406,1725678683717,-214.40289212,0.00014998,2]
[337473407,1725678683729,-402.41737293,0.00014998,2]
[337473408,1725678683746,-53.68973495,0.00014998,2]
[337473409,1725678683755,-500.0,0.00014998,2]
[337473410,1725678683764,-670.51,0.00014998,2]
[337473411,1725678683773,-500.0,0.00014998,2]
[337473412,1725678683782,-670.51,0.00014998,2]
[337473413,1725678683792,-587.13,0.00014998,2]
[337473414,1725678683801,-587.13,0.00014998,2]
[337473415,1725678683811,-1830.7,0.00014998,2]
[337473416,1725678683820,-1830.7,0.00014998,2]
[337473417,1725678683830,-1830.7,0.00014998,2]
[337473418,1725678683839,-1830.7,0.00014998,2]
[337473419,1725678683849,-1830.7,0.00014998,2]
[337473420,1725678683859,-151.0,0.00014998,2]
[337473421,1725678683868,-555.69,0.00014998,2]
[337473422,1725678683880,-555.69,0.00014998,2]
[337473423,1725678683890,-500.0,0.00014998,2]
[337473424,1725678683900,-500.0,0.00014998,2]
[337473425,1725678683909,-615.679394,0.00014998,2]
[337473426,1725678683919,-921.35,0.00014998,2]
[337473427,1725678683928,-921.35,0.00014998,2]
[337473428,1725678683938,-921.35,0.00014998,2]
[337473429,1725678683948,-921.35,0.00014998,2]
[337473430,1725678683958,-921.35,0.00014998,2]
[337473431,1725678683968,-615.679394,0.00014998,2]
[337473432,1725678683977,-1112.73,0.00014998,2]
[337473433,1725678683987,-1112.73,0.00014998,2]
[337473434,1725678683997,-446.254511,0.00014998,2]
[337473435,1725678684007,-446.254511,0.00014998,2]
[337473436,1725678684018,-446.254511,0.00014998,2]
[337473437,1725678684028,-446.254511,0.00014998,2]
[337473438,1725678684040,-500.0,0.00014998,2]
[337473439,1725678684050,-196.08896867,0.00014998,2]
[337473440,1725678684060,-511.78085885,0.00014998,2]
[337473441,1725678684070,-507.16,0.00014998,2]
[337473442,1725678684081,-507.16,0.00014998,2]
[337473443,1725678684093,-500.0,0.00014998,2]
[337473444,1725678684103,-500.0,0.00014998,2]
[337473445,1725678684113,-738.41,0.00014998,2]
[337473446,1725678684123,-738.41,0.00014998,2]
[337473447,1725678684132,-738.41,0.00014998,2]
[337473448,1725678684142,-738.41,0.00014998,2]
[337473449,1725678684152,-738.41,0.00014998,2]
[337473450,1725678684161,-500.0,0.00014998,2]
[337473451,1725678684171,-500.0,0.00014998,2]
[337473452,1725678684181,-500.0,0.00014998,2]
[337473453,1725678684191,-500.0,0.00014998,2]
[337473454,1725678684201,-500.0,0.00014998,2]
[337473455,1725678684212,-524.28,0.00014998,2]
[337473456,1725678684222,-500.0,0.00014998,2]
[337473457,1725678684232,-524.28,0.00014998,2]
[337473458,1725678684242,-500.0,0.00014998,2]
[337473459,1725678684252,-500.0,0.00014998,2]
[337473460,1725678684262,-1668.81,0.00014998,2]
[337473461,1725678684271,-1668.81,0.00014998,2]
[337473462,1725678684281,-962.27,0.00014998,2]
[337473463,1725678684291,-962.27,0.00014998,2]
[337473464,1725678684301,-500.0,0.00014998,2]
[337473465,1725678684310,-486.78450432,0.00014998,2]
[337473466,1725678684320,-500.0,0.00014998,2]
[337473467,1725678684330,-538.68,0.00014998,2]
[337473468,1725678684340,-538.68,0.00014998,2]
[337473469,1725678684350,-538.68,0.00014998,2]
[337473470,1725678684360,-538.68,0.00014998,2]
[337473471,1725678684369,-538.68,0.00014998,2]
[337473472,1725678684379,-500.0,0.00014998,2]
[337473473,1725678684389,-500.0,0.00014998,2]
[337473474,1725678684398,-2302.07,0.00014998,2]
[337473475,1725678684408,-2302.07,0.00014998,2]
[337473476,1725678684417,-151.0,0.00014998,2]
[337473477,1725678684427,-2788.79,0.00014998,2]
[337473478,1725678684436,-2788.79,0.00014998,2]
[337473479,1725678684446,-282.91606,0.00014998,2]
[337473480,1725678684456,-151.0,0.00014998,2]
[337473481,1725678684466,-500.0,0.00014998,2]
[337473482,1725678684476,-500.0,0.00014998,2]
[337473483,1725678684486,-294.12427,0.00014998,2]
[337473484,1725678684495,-870.51,0.00014998,2]
[337473485,1725678684505,-870.51,0.00014998,2]
[337473486,1725678684515,-175.12851444,0.00014998,2]
[337473487,1725678684524,-870.51,0.00014998,2]
[337473488,1725678684534,-870.51,0.00014998,2]
[337473489,1725678684544,-870.51,0.00014998,2]
[337473490,1725678684554,-508.34,0.00014998,2]
[337473491,1725678684563,-508.34,0.00014998,2]
[337473492,1725678684572,-508.34,0.00014998,2]
[337473493,1725678684582,-508.34,0.00014998,2]
[337473494,1725678684592,-508.34,0.00014998,2]
[337473495,1725678684602,-1042.4,0.00014998,2]
[337473496,1725678684612,-1042.4,0.00014998,2]
[337473497,1725678684621,-1042.4,0.00014998,2]
[337473498,1725678684632,-1042.4,0.00014998,2]
[337473499,1725678684642,-1042.4,0.00014998,2]
[337473500,1725678684651,-243.073984,0.00014998,2]
[337473501,1725678684661,-243.073984,0.00014998,2]
[337473502,1725678684670,-791.72,0.00014998,2]
[337473503,1725678684680,-791.72,0.00014998,2]
[337473504,1725678684690,-791.72,0.00014998,2]
[337473505,1725678684701,-791.72,0.00014998,2]
[337473506,1725678684711,-791.72,0.00014998,2]
[337473507,1725678684721,-243.073984,0.00014998,2]
[337473508,1725678684731,-243.073984,0.00014998,2]
[337473509,1725678684741,-500.0,0.00014998,2]
[337473510,1725678684751,-500.0,0.00014998,2]
[337473511,1725678684760,-509.44,0.00014998,2]
[337473512,1725678684770,-500.0,0.00014998,2]
[337473513,1725678684780,-509.44,0.00014998,2]
[337473514,1725678684791,-500.0,0.00014998,2]
[337473515,1725678684803,-185.09810807,0.00014998,2]
[337473516,1725678684813,-500.0,0.00014998,2]
[337473517,1725678684823,-500.0,0.00014998,2]
[337473518,1725678684833,-544.21,0.00014998,2]
[337473519,1725678684843,-544.21,0.00014998,2]
[337473520,1725678684854,-633.7,0.00014998,2]